bitfinex/quotes_BTCUSD_20251102
["timestamp","ask_amount","ask_price","bid_price","bid_amount"]
[1762088200868,0.64094348,110980.0,110970.0,0.23732889]
[1762088201520,0.6047612,110980.0,110970.0,0.23732889]
[1762088202805,0.42454855,110980.0,110970.0,0.23732889]
[1762088202992,0.57241648,110980.0,110970.0,0.23732889]
[1762088203712,0.57241648,110980.0,110970.0,0.0571]
[1762088204537,0.39220383,110980.0,110970.0,0.26224609]
[1762088204711,0.37283063,110980.0,110970.0,0.26224609]
[1762088204925,0.356,110980.0,110970.0,0.26224609]
[1762088210804,0.53621265,110980.0,110970.0,0.26224609]
[1762088211466,0.356,110980.0,110970.0,0.26224609]
[1762088211644,0.53621265,110980.0,110970.0,0.26224609]
[1762088213643,0.53621265,110980.0,110970.0,0.0820172]
[1762088214311,0.53621265,110980.0,110970.0,0.0571]
[1762088215495,0.53621265,110980.0,110970.0,0.03316]
[1762088216207,0.53621265,110980.0,110970.0,0.05684]
[1762088219581,0.55303063,110980.0,110970.0,0.05684]
[1762088220008,0.53621265,110980.0,110970.0,0.05684]
[1762088220604,0.55303099,110980.0,110970.0,0.05684]
[1762088221009,0.55303099,110980.0,110970.0,0.03316]
[1762088222080,0.55303099,110980.0,110970.0,0.05684]
[1762088222901,0.53621265,110980.0,110970.0,0.05684]
[1762088224309,0.5530357,110980.0,110970.0,0.05684]
[1762088228888,0.57242375,110980.0,110970.0,0.03316]
[1762088230062,0.5530357,110980.0,110970.0,0.03316]
[1762088231438,0.57243131,110980.0,110970.0,0.03316]
[1762088234408,0.65374577,110980.0,110970.0,0.03316]
[1762088234612,0.65900701,110980.0,110970.0,0.0171]
[1762088234819,0.68609124,110980.0,110970.0,0.0171]
[1762088235742,0.68609124,110980.0,110970.0,0.005]
[1762088241517,0.68083,110980.0,110970.0,0.005]
[1762088242369,0.68609022,110980.0,110970.0,0.005]
[1762088243875,0.60477576,110980.0,110970.0,0.005]
[1762088244288,0.60477576,110980.0,110970.0,0.02125]
[1762088244715,0.59951554,110980.0,110970.0,0.02125]
[1762088245216,0.60477613,110980.0,110970.0,0.02125]
[1762088254225,0.60477613,110980.0,110970.0,0.21347889]
[1762088254492,0.60477717,110980.0,110970.0,0.03325]
[1762088254919,0.68661797,110980.0,110970.0,0.03325]
[1762088255124,0.68135634,110980.0,110970.0,0.03325]
[1762088255428,0.68661837,110980.0,110970.0,0.03325]
[1762088256388,0.68661837,110980.0,110970.0,0.21347889]
[1762088256592,0.59951554,110980.0,110970.0,0.23627889]
[1762088257005,0.6047781,110980.0,110970.0,0.23627889]
[1762088258419,0.58269249,110980.0,110970.0,0.23627889]
[1762088259279,0.59953558,110980.0,110970.0,0.23627889]
[1762088259620,0.58269249,110980.0,110970.0,0.23627889]
[1762088259836,0.59953558,110980.0,110970.0,0.23627889]
[1762088260544,0.58269249,110980.0,110970.0,0.23627889]
[1762088260978,0.41932357,110980.0,110970.0,0.23627889]
[1762088261237,0.58269249,110980.0,110970.0,0.23627889]
[1762088261885,0.59953488,110980.0,110970.0,0.23627889]
[1762088262913,0.41932223,110980.0,110970.0,0.23627889]
[1762088263123,0.59953488,110980.0,110970.0,0.23627889]
[1762088266006,0.58269249,110980.0,110970.0,0.23627889]
[1762088266224,0.59952421,110980.0,110970.0,0.23627889]
[1762088271330,0.59952421,110980.0,110970.0,0.05605]
[1762088271486,0.59952421,110980.0,110970.0,0.23627889]
[1762088271691,0.59952421,110980.0,110970.0,0.21347889]
[1762088273247,0.68083971,110980.0,110970.0,0.21347889]
[1762088273453,0.68083971,110980.0,110970.0,0.23627889]
[1762088274397,0.59952421,110980.0,110970.0,0.23627889]
[1762088281105,0.59952421,110980.0,110970.0,0.03325]
[1762088287153,0.59952421,110980.0,110970.0,0.005]
[1762088287438,0.60478247,110980.0,110970.0,0.005]
[1762088290055,0.58269249,110980.0,110970.0,0.005]
[1762088290303,0.60477349,110980.0,110970.0,0.005]
[1762088291252,0.68894259,110980.0,110970.0,0.005]
[1762088291500,0.72512487,110980.0,110970.0,0.005]
[1762088291709,0.83567285,110980.0,110970.0,0.005]
[1762088291931,0.82759033,110980.0,110970.0,0.005]
[1762088292329,1.02759033,110980.0,110970.0,0.005]
[1762088292533,1.01559033,110980.0,110970.0,0.001]
[1762088292766,1.01559033,110980.0,110970.0,0.005]
[1762088292987,1.03459033,110980.0,110970.0,0.005]
[1762088293237,0.52026137,110950.0,110940.0,0.01145]
[1762088293475,0.53708132,110950.0,110940.0,0.21502762]
[1762088293690,0.53708132,110950.0,110940.0,0.23096762]
[1762088293900,0.56417423,110950.0,110940.0,0.23096762]
[1762088294306,0.56426137,110950.0,110940.0,0.23096762]
[1762088294515,0.54744142,110950.0,110940.0,0.23096762]
[1762088294712,0.52034851,110950.0,110940.0,0.23096762]
[1762088295132,0.52634851,110950.0,110940.0,0.23096762]
[1762088295548,0.52834851,110950.0,110940.0,0.23196762]
[1762088299616,0.34808714,110950.0,110940.0,0.23196762]
[1762088299823,0.52834851,110950.0,110940.0,0.23196762]
[1762088302514,0.34808714,110950.0,110940.0,0.23196762]
[1762088302731,0.34808714,110950.0,110940.0,0.27524019]
[1762088306021,0.34808714,110950.0,110940.0,0.23196762]
[1762088306450,0.52834851,110950.0,110940.0,0.23196762]
[1762088312366,0.52834851,110950.0,110940.0,0.001]
[1762088312367,0.56453079,110950.0,110940.0,0.001]
[1762088312539,0.65460411,110950.0,110940.0,0.001]
[1762088312749,0.79701808,110950.0,110940.0,0.001]
[1762088313659,0.79101808,110950.0,110940.0,0.001]
[1762088313975,0.79101808,110950.0,110910.0,0.03554]
[1762088313976,0.52031013,110920.0,110910.0,0.03554]
[1762088314421,0.52031013,110920.0,110910.0,0.05099]
[1762088316077,0.52031013,110920.0,110910.0,0.23131639]
[1762088316588,0.52631013,110920.0,110910.0,0.24031639]
[1762088316990,0.52831013,110920.0,110910.0,0.24731639]
[1762088317778,0.52831013,110920.0,110910.0,0.06699]
[1762088318209,0.52831013,110920.0,110910.0,0.24731639]
[1762088318577,0.52831013,110920.0,110910.0,0.06699]
[1762088318780,0.52831013,110920.0,110910.0,0.24731639]
[1762088320636,0.52831013,110920.0,110910.0,0.06699]
[1762088320867,0.52831013,110920.0,110910.0,0.24731639]
[1762088322780,0.008,110920.0,110910.0,0.29220894]
[1762088327437,0.008,110920.0,110910.0,0.24731639]
[1762088328446,0.008,110920.0,110910.0,0.22322639]
[1762088328646,0.008,110920.0,110910.0,0.24731639]
[1762088328903,0.18831013,110920.0,110910.0,0.24731639]
[1762088330058,0.008,110920.0,110910.0,0.24731639]
[1762088330524,0.18831013,110920.0,110910.0,0.24731639]
[1762088330721,0.008,110920.0,110910.0,0.24731639]
[1762088330928,0.18831013,110920.0,110910.0,0.3007841]
[1762088333106,0.008,110920.0,110910.0,0.24731639]
[1762088333511,0.18831013,110920.0,110910.0,0.24731639]
[1762088334666,0.18831013,110920.0,110910.0,0.06699]
[1762088334890,0.18831013,110920.0,110910.0,0.24731639]
[1762088335501,0.18831013,110920.0,110910.0,0.06699]
[1762088335820,0.18831013,110920.0,110910.0,0.24731639]
[1762088336526,0.18831013,110920.0,110910.0,0.12045771]
[1762088336733,0.18831013,110920.0,110910.0,0.3007841]
[1762088337093,0.18831013,110920.0,110910.0,0.12045771]
[1762088337325,0.18831013,110920.0,110910.0,0.3007841]
[1762088337865,0.18831013,110920.0,110910.0,0.12045771]
[1762088338081,0.18831013,110920.0,110910.0,0.3007841]
[1762088338457,0.18831013,110920.0,110910.0,0.12045771]
[1762088338664,0.18831013,110920.0,110910.0,0.24731639]
[1762088340914,0.18831013,110920.0,110910.0,0.06699]
[1762088341124,0.18831013,110920.0,110910.0,0.24731639]
[1762088342761,0.18831013,110920.0,110910.0,0.06699]
[1762088342981,0.18831013,110920.0,110910.0,0.0429]
[1762088343595,0.18831013,110920.0,110910.0,0.06661]
[1762088344571,0.18831013,110920.0,110910.0,0.0429]
[1762088347206,0.19735687,110920.0,110910.0,0.0429]
[1762088347818,0.53735687,110920.0,110910.0,0.016]
[1762088348021,0.55416637,110920.0,110910.0,0.016]
[1762088348232,0.53735687,110920.0,110910.0,0.03246]
[1762088348418,0.53735687,110920.0,110910.0,0.04438]
[1762088348622,0.53735687,110920.0,110910.0,0.06809]
[1762088349470,0.35704674,110920.0,110910.0,0.27448463]
[1762088349687,0.53735687,110920.0,110910.0,0.09415824]
[1762088349891,0.53735687,110920.0,110910.0,0.27448463]
[1762088350107,0.35704674,110920.0,110910.0,0.27448463]
[1762088350816,0.35704674,110920.0,110910.0,0.24841639]
[1762088353198,0.53735687,110920.0,110910.0,0.24841639]
[1762088354424,0.35704674,110920.0,110910.0,0.24841639]
[1762088356565,0.53735687,110920.0,110910.0,0.24841639]
[1762088356972,0.35704674,110920.0,110910.0,0.24841639]
[1762088359844,0.348,110920.0,110910.0,0.29251727]
[1762088363392,0.008,110920.0,110910.0,0.29251727]
[1762088365261,0.00796,110920.0,110910.0,0.29251727]
[1762088371184,0.00796,110920.0,110910.0,0.24841639]
[1762088371592,0.18827013,110920.0,110910.0,0.24841639]
[1762088371809,0.00796,110920.0,110910.0,0.24841639]
[1762088374600,0.18827013,110920.0,110910.0,0.24841639]
[1762088376484,0.18827013,110920.0,110910.0,0.04438]
[1762088376695,0.18827013,110920.0,110910.0,0.22470639]
[1762088377722,0.18827013,110920.0,110910.0,0.24805639]
[1762088378458,0.18827013,110920.0,110910.0,0.06773]
[1762088378598,0.18827013,110920.0,110910.0,0.24805639]
[1762088378777,0.18827013,110920.0,110910.0,0.06773]
[1762088379156,0.18827013,110920.0,110910.0,0.04438]
[1762088380902,0.18827013,110920.0,110910.0,0.22470639]
[1762088381136,0.18827013,110920.0,110910.0,0.24805639]
[1762088382269,0.18908658,110920.0,110910.0,0.24805639]
[1762088382590,0.18908658,110920.0,110910.0,0.22470639]
[1762088382803,0.62893734,110920.0,110910.0,0.016]
[1762088383005,0.70075113,110920.0,110910.0,0.016]
[1762088383836,0.69875113,110920.0,110910.0,0.009]
[1762088384269,0.52034265,110900.0,110890.0,0.0002187]
[1762088384453,0.59041102,110900.0,110890.0,0.0002187]
[1762088385417,0.59041102,110900.0,110890.0,0.00070239]
[1762088385617,0.52034265,110900.0,110890.0,0.01620239]
[1762088386125,0.52034265,110900.0,110890.0,0.02778239]
[1762088386511,0.52234265,110900.0,110890.0,0.2364913]
[1762088386717,0.52834265,110900.0,110890.0,0.06013239]
[1762088387377,0.52834265,110900.0,110890.0,0.2404913]
[1762088387993,0.52834265,110900.0,110890.0,0.06013239]
[1762088389735,0.52872188,110900.0,110890.0,0.06013239]
[1762088390412,0.52872188,110900.0,110890.0,0.2404913]
[1762088391705,0.52872188,110900.0,110890.0,0.06013239]
[1762088391908,0.52872188,110900.0,110890.0,0.2404913]
[1762088393973,0.34837923,110900.0,110890.0,0.2404913]
[1762088394185,0.34837923,110900.0,110890.0,0.28474471]
[1762088395729,0.00837923,110900.0,110890.0,0.28474471]
[1762088397238,0.18872188,110900.0,110890.0,0.28474471]
[1762088397477,0.00837923,110900.0,110890.0,0.28474471]
[1762088399850,0.18872188,110900.0,110890.0,0.28474471]
[1762088400063,0.00837923,110900.0,110890.0,0.28474471]
[1762088401103,0.18872188,110900.0,110890.0,0.28474471]
[1762088401311,0.18872188,110900.0,110890.0,0.06013239]
[1762088401518,0.52872188,110900.0,110890.0,0.02128239]
[1762088401725,0.52872188,110900.0,110890.0,0.00970239]
[1762088401726,0.52738555,110900.0,110890.0,0.00970239]
[1762088402367,0.54415431,110900.0,110890.0,0.00970239]
[1762088402566,0.61660247,110900.0,110890.0,0.00970239]
[1762088403194,0.61060247,110900.0,110890.0,0.00570239]
[1762088403396,0.62926041,110900.0,110890.0,0.00070239]
[1762088403586,0.6169388,110900.0,110890.0,0.01170239]
[1762088404028,0.65112108,110900.0,110890.0,0.00670239]
[1762088404240,0.67980357,110900.0,110890.0,0.01170239]
[1762088404440,0.69912431,110900.0,110890.0,0.01170239]
[1762088404729,0.69412431,110900.0,110890.0,0.00570239]
[1762088405145,0.70012431,110900.0,110890.0,0.01070239]
[1762088405561,0.69412431,110900.0,110890.0,0.00570239]
[1762088405927,0.69812431,110900.0,110890.0,0.00570239]
[1762088406466,0.70012431,110900.0,110890.0,0.01170239]
[1762088408159,0.70012431,110900.0,110890.0,0.01112861]
[1762088409022,0.75258758,110900.0,110890.0,0.01112861]
[1762088410068,0.75258758,110900.0,110890.0,0.00512861]
[1762088410223,0.75058758,110900.0,110890.0,0.00512861]
[1762088410428,0.75158758,110900.0,110890.0,0.00912861]
[1762088410641,0.74558758,110900.0,110890.0,0.00412861]
[1762088411108,0.75058758,110900.0,110890.0,0.00812861]
[1762088411314,0.78282087,110900.0,110890.0,0.00812861]
[1762088411529,0.98282087,110900.0,110890.0,0.00812861]
[1762088411742,0.96992916,110900.0,110890.0,0.00412861]
[1762088411967,0.98690916,110900.0,110880.0,0.0004]
[1762088412193,0.69043248,110890.0,110880.0,0.00054515]
[1762088412416,0.97284259,110890.0,110880.0,0.00054515]
[1762088412675,0.98206378,110890.0,110880.0,0.00054515]
[1762088413118,0.98206378,110890.0,110880.0,0.00554515]
[1762088413330,0.94986661,110890.0,110880.0,0.00554515]
[1762088413551,0.98206378,110890.0,110880.0,0.00054515]
[1762088413766,0.98406378,110890.0,110880.0,0.00554515]
[1762088414661,0.99006378,110890.0,110880.0,0.00654515]
[1762088415503,0.95786661,110890.0,110880.0,0.00654515]
[1762088415925,0.99006378,110890.0,110880.0,0.00654515]
[1762088416365,0.95786661,110890.0,110880.0,0.00654515]
[1762088417456,0.71076661,110890.0,110880.0,0.00654515]
[1762088417908,0.71076661,110890.0,110880.0,0.00676388]
[1762088419849,0.67458433,110890.0,110880.0,0.00676388]
[1762088420072,0.64790184,110890.0,110880.0,0.00676388]
[1762088420511,0.62375396,110890.0,110880.0,0.00676388]
[1762088422029,0.28375396,110890.0,110880.0,0.00676388]
[1762088427809,0.10339505,110890.0,110880.0,0.23816906]
[1762088428037,0.02476876,110890.0,110880.0,0.23816906]
[1762088428241,0.008,110890.0,110880.0,0.23816906]
[1762088428654,0.18835891,110890.0,110880.0,0.23816906]
[1762088428854,0.008,110890.0,110880.0,0.23816906]
[1762088429031,0.18835891,110890.0,110880.0,0.23816906]
[1762088429483,0.22522931,110890.0,110880.0,0.03461388]
[1762088429821,0.22522931,110890.0,110880.0,0.05779388]
[1762088430022,0.18835891,110890.0,110880.0,0.05779388]
[1762088430435,0.18835891,110890.0,110880.0,0.03461388]
[1762088431059,0.18835891,110890.0,110880.0,0.00676388]
[1762088433372,0.18835891,110890.0,110880.0,0.02284388]
[1762088436156,0.18835891,110890.0,110880.0,0.03461388]
[1762088436832,0.22522931,110890.0,110880.0,0.03461388]
[1762088438655,0.22522931,110890.0,110880.0,0.05779388]
[1762088440204,0.22522931,110890.0,110880.0,0.03461388]
[1762088441269,0.22522931,110890.0,110880.0,0.05779388]
[1762088441494,0.22522931,110890.0,110880.0,0.03461388]
[1762088442378,0.22522931,110890.0,110880.0,0.00676388]
[1762088445295,0.22522931,110890.0,110880.0,0.02284388]
[1762088448501,0.22522931,110890.0,110880.0,0.05779388]
[1762088449947,0.22522931,110890.0,110880.0,0.03461388]
[1762088451073,0.22522931,110890.0,110880.0,0.00676388]
[1762088451257,0.26135593,110890.0,110880.0,0.00676388]
[1762088452320,0.28821844,110890.0,110880.0,0.00676388]
[1762088452942,0.31666774,110890.0,110880.0,0.00676388]
[1762088453339,0.34378034,110890.0,110880.0,0.00676388]
[1762088453549,0.36792822,110890.0,110880.0,0.00676388]
[1762088454799,0.40012539,110890.0,110880.0,0.00676388]
[1762088454985,0.36792822,110890.0,110880.0,0.00676388]
[1762088455969,0.36792384,110890.0,110880.0,0.00676388]
[1762088456381,0.40012101,110890.0,110880.0,0.00676388]
[1762088457190,0.37597313,110890.0,110880.0,0.00676388]
[1762088458408,3.37814728,110890.0,110880.0,1e-08]
[1762088458673,3.43345909,110890.0,110880.0,1e-08]
[1762088458854,3.40126192,110890.0,110880.0,1e-08]
[1762088459461,3.43345771,110890.0,110880.0,1e-08]
[1762088460320,3.42745771,110890.0,110880.0,1e-08]
[1762088460535,3.36777594,110890.0,110880.0,1e-08]
[1762088460769,0.38039144,110870.0,110860.0,0.0004]
[1762088461013,0.54892748,110870.0,110860.0,0.00044823]
[1762088461217,0.54359818,110870.0,110860.0,0.00044823]
[1762088461417,0.54721416,110870.0,110860.0,0.00044823]
[1762088462163,0.54921416,110870.0,110860.0,0.00044823]
[1762088463378,0.55421416,110870.0,110860.0,0.00044823]
[1762088463781,0.52735165,110870.0,110860.0,0.00044823]
[1762088464192,0.50320779,110870.0,110860.0,0.00044823]
[1762088465235,0.5585196,110870.0,110860.0,0.00044823]
[1762088465440,0.58266346,110870.0,110860.0,0.00044823]
[1762088466291,0.58266346,110870.0,110860.0,0.0008858]
[1762088466496,0.57766346,110870.0,110860.0,0.0008858]
[1762088467031,0.58266346,110870.0,110860.0,0.0008858]
[1762088467189,0.57766346,110870.0,110860.0,0.0008858]
[1762088467405,0.57566346,110870.0,110860.0,0.0008858]
[1762088467570,0.58066346,110870.0,110860.0,0.0008858]
[1762088467754,0.58366346,110870.0,110860.0,0.0008858]
[1762088468111,0.58066346,110870.0,110860.0,0.0008858]
[1762088468366,0.58266346,110870.0,110860.0,0.0008858]
[1762088470840,0.52735165,110870.0,110860.0,0.0008858]
[1762088473433,0.55421416,110870.0,110860.0,0.0008858]
[1762088476447,0.58640597,110870.0,110860.0,0.0008858]
[1762088478259,0.55421416,110870.0,110860.0,0.0008858]
[1762088478472,0.58640597,110870.0,110860.0,0.0008858]
[1762088481353,0.56226211,110870.0,110860.0,0.0008858]
[1762088482341,0.61054983,110870.0,110860.0,0.0008858]
[1762088482569,0.56226211,110870.0,110860.0,0.0008858]
[1762088483312,0.61054983,110870.0,110860.0,0.0008858]
[1762088483921,0.3353996,110870.0,110860.0,0.0008858]
[1762088484661,0.35953581,110870.0,110860.0,0.0280158]
[1762088484860,0.327344,110870.0,110860.0,0.0280158]
[1762088485212,0.327344,110870.0,110860.0,0.0127958]
[1762088485388,0.35953581,110870.0,110860.0,0.0008858]
[1762088485570,0.327344,110870.0,110860.0,0.0008858]
[1762088486405,0.35953581,110870.0,110860.0,0.0008858]
[1762088486953,0.327344,110870.0,110860.0,0.0008858]
[1762088487152,0.24764989,110870.0,110860.0,0.0514058]
[1762088487367,0.22351368,110870.0,110860.0,0.0514058]
[1762088489558,0.22351368,110870.0,110860.0,0.23181352]
[1762088489990,0.04312224,110870.0,110860.0,0.23181352]
[1762088490209,0.02378347,110870.0,110860.0,0.23181352]
[1762088490425,0.02377717,110870.0,110860.0,0.23181352]
[1762088491079,0.01877717,110870.0,110860.0,0.23181352]
[1762088491296,0.02277717,110870.0,110860.0,0.23181352]
[1762088491707,0.02477717,110870.0,110860.0,0.23181352]
[1762088492987,0.02477717,110870.0,110860.0,0.27695946]
[1762088493613,0.02477717,110870.0,110860.0,0.23181352]
[1762088493815,0.008,110870.0,110860.0,0.23181352]
[1762088494435,0.008,110870.0,110860.0,0.2589243]
[1762088499862,0.18839144,110870.0,110860.0,0.2589243]
[1762088500061,0.008,110870.0,110860.0,0.2589243]
[1762088502026,0.18839144,110870.0,110860.0,0.2589243]
[1762088505238,0.22526816,110870.0,110860.0,0.2589243]
[1762088505552,0.008,110870.0,110860.0,0.23181352]
[1762088508213,0.008,110870.0,110860.0,0.25892416]
[1762088511589,0.008,110870.0,110860.0,0.34467584]
[1762088512353,0.002,110870.0,110860.0,0.34467584]
[1762088512780,0.18035935,110890.0,110870.0,0.18037682]
[1762088512982,0.18035935,110890.0,110880.0,0.20674518]
[1762088513184,0.18035935,110890.0,110880.0,0.05052]
[1762088513758,0.18035935,110890.0,110880.0,0.23089518]
[1762088514010,0.18535935,110890.0,110880.0,0.05052]
[1762088514217,0.18735935,110890.0,110880.0,0.23089518]
[1762088514426,0.20411292,110890.0,110880.0,0.05052]
[1762088514621,0.20411292,110890.0,110880.0,0.23089518]
[1762088514825,0.26726849,110890.0,110880.0,0.05052]
[1762088515035,0.26726849,110890.0,110880.0,0.23089518]
[1762088515438,0.26226849,110890.0,110880.0,0.05052]
[1762088515862,0.27426849,110890.0,110880.0,0.05452]
[1762088516503,0.27426849,110890.0,110880.0,0.03037]
[1762088517055,0.27426849,110890.0,110880.0,0.05329]
[1762088517712,0.03075357,110890.0,110880.0,0.23366518]
[1762088520758,0.014,110890.0,110880.0,0.26077107]
[1762088521264,0.03076995,110890.0,110880.0,0.26077107]
[1762088521922,0.014,110890.0,110880.0,0.26077107]
[1762088523779,0.014,110890.0,110880.0,0.34652275]
[1762088523982,0.014,110890.0,110880.0,0.4003645]
[1762088528970,0.014,110890.0,110880.0,0.34652275]
[1762088530922,0.014,110890.0,110880.0,0.26077107]
[1762088531990,0.014,110890.0,110880.0,0.23366518]
[1762088532530,0.014,110890.0,110880.0,0.31941686]
[1762088533525,0.19959157,110930.0,110920.0,0.18031013]
[1762088533723,0.04385135,110930.0,110920.0,0.20788013]
[1762088533903,0.04385135,110930.0,110920.0,0.23080013]
[1762088534414,0.22414522,110930.0,110920.0,0.23080013]
[1762088534728,0.05385135,110930.0,110920.0,0.23480013]
[1762088535047,0.22414522,110930.0,110920.0,0.23080013]
[1762088535253,0.22414522,110930.0,110920.0,0.05049]
[1762088535661,0.197047,110930.0,110920.0,0.05049]
[1762088536311,0.201047,110930.0,110920.0,0.05149]
[1762088536525,0.25199115,110930.0,110920.0,0.05549]
[1762088539148,0.25199115,110930.0,110920.0,0.23580013]
[1762088539593,0.25199115,110930.0,110920.0,0.05549]
[1762088540388,0.212047,110930.0,110920.0,0.23580013]
[1762088542960,0.015,110930.0,110920.0,0.23580013]
[1762088543159,0.19529387,110930.0,110920.0,0.05549]
[1762088544002,0.19529387,110930.0,110920.0,0.23580013]
[1762088544176,0.21203842,110930.0,110920.0,0.23580013]
[1762088544391,0.19529387,110930.0,110920.0,0.23580013]
[1762088544591,0.19529387,110930.0,110920.0,0.05549]
[1762088544799,0.23375445,110930.0,110920.0,0.05549]
[1762088546601,0.19529387,110930.0,110920.0,0.05549]
[1762088549534,0.19529387,110930.0,110920.0,0.23580013]
[1762088549953,0.19529387,110930.0,110920.0,0.05549]
[1762088550904,0.21204842,110930.0,110920.0,0.05549]
[1762088553864,0.21204842,110930.0,110920.0,0.03257]
[1762088554082,0.25218446,110930.0,110920.0,0.03257]
[1762088555598,0.27149678,110930.0,110920.0,0.005]
[1762088560034,0.27149678,110930.0,110920.0,0.03249]
[1762088562562,0.23136074,110930.0,110920.0,0.05723]
[1762088563168,0.23136074,110930.0,110920.0,0.03249]
[1762088565008,0.23136074,110930.0,110920.0,0.005]
[1762088565239,0.23660576,110930.0,110920.0,0.005]
[1762088565452,0.23136074,110930.0,110920.0,0.005]
[1762088565655,0.30054969,110930.0,110920.0,0.005]
[1762088573775,0.30580313,110930.0,110920.0,0.005]
[1762088580412,0.32991993,110930.0,110920.0,0.005]
[1762088580811,0.35678244,110930.0,110920.0,0.005]
[1762088581007,0.38388617,110930.0,110920.0,0.005]
[1762088582087,0.38388617,110930.0,110920.0,0.001]
[1762088582088,0.37288617,110930.0,110920.0,0.001]
[1762088582420,0.18032639,110910.0,110900.0,0.0117]
[1762088582626,0.23893231,110910.0,110900.0,0.03642]
[1762088582827,0.21639152,110910.0,110900.0,0.0524]
[1762088583055,0.21639152,110910.0,110900.0,0.23274265]
[1762088583252,0.18032488,110920.0,110900.0,0.23274265]
[1762088583459,0.21965893,110920.0,110910.0,0.01598]
[1762088583840,0.21646768,110920.0,110910.0,0.01598]
[1762088585504,0.23046768,110920.0,110910.0,0.02747]
[1762088585715,0.28177588,110920.0,110910.0,0.05219]
[1762088585923,0.21646768,110920.0,110910.0,0.23251639]
[1762088586127,0.22146768,110920.0,110910.0,0.05219]
[1762088586327,0.23046768,110920.0,110910.0,0.05619]
[1762088590131,0.23046768,110920.0,110910.0,0.23651639]
[1762088590462,0.23045293,110920.0,110910.0,0.23651639]
[1762088590713,0.0501428,110920.0,110910.0,0.23651639]
[1762088590916,0.03079529,110920.0,110910.0,0.23651639]
[1762088591323,0.014,110920.0,110910.0,0.23651639]
[1762088591565,0.005,110920.0,110910.0,0.23251639]
[1762088591772,0.19964138,110930.0,110920.0,0.18031013]
[1762088591968,0.19709751,110930.0,110920.0,0.23250013]
[1762088592180,0.21644502,110930.0,110920.0,0.23250013]
[1762088592931,0.03615115,110930.0,110920.0,0.22750013]
[1762088593134,0.21109751,110930.0,110920.0,0.23150013]
[1762088593337,0.23044502,110930.0,110920.0,0.23150013]
[1762088594273,0.22144502,110930.0,110920.0,0.22750013]
[1762088594808,0.22744502,110930.0,110920.0,0.23150013]
[1762088595131,0.22244502,110930.0,110920.0,0.23150013]
[1762088595579,0.22544502,110930.0,110920.0,0.23250013]
[1762088596836,0.04515115,110930.0,110920.0,0.23250013]
[1762088597025,0.02580364,110930.0,110920.0,0.23250013]
[1762088597863,0.009,110930.0,110920.0,0.23250013]
[1762088599625,0.18929387,110930.0,110920.0,0.23250013]
[1762088603304,0.07157058,110930.0,110920.0,0.23250013]
[1762088603449,0.009,110930.0,110920.0,0.23250013]
[1762088610046,0.009,110930.0,110920.0,0.05719]
[1762088610317,0.18929387,110930.0,110920.0,0.05719]
[1762088611118,0.18929387,110930.0,110920.0,0.23750013]
[1762088612182,0.18929387,110930.0,110920.0,0.05719]
[1762088617672,0.18929387,110930.0,110920.0,0.23750013]
[1762088617843,0.18929387,110930.0,110920.0,0.05719]
[1762088620123,0.20611065,110930.0,110920.0,0.05719]
[1762088620324,0.26868123,110930.0,110920.0,0.05719]
[1762088621222,0.28806308,110930.0,110920.0,0.05719]
[1762088622270,0.2254925,110930.0,110920.0,0.05719]
[1762088622485,0.20611065,110930.0,110920.0,0.05719]
[1762088623262,0.22549556,110930.0,110920.0,0.05719]
[1762088630900,0.23076983,110930.0,110920.0,0.05719]
[1762088631335,0.22549556,110930.0,110920.0,0.05719]
[1762088631555,0.29679159,110930.0,110920.0,0.05719]
[1762088631760,0.22539639,110930.0,110920.0,0.05719]
[1762088631966,0.23067041,110930.0,110920.0,0.05719]
[1762088635364,0.23067041,110930.0,110920.0,0.03247]
[1762088635569,0.25485881,110930.0,110920.0,0.005]
[1762088635786,0.28705062,110930.0,110920.0,0.005]
[1762088636000,0.39377441,110930.0,110920.0,0.005]
[1762088638123,0.3615826,110930.0,110920.0,0.005]
[1762088640761,0.3615636,110930.0,110920.0,0.005]
[1762088643352,0.3615636,110930.0,110920.0,0.02003]
[1762088643810,0.33737331,110930.0,110920.0,0.02003]
[1762088645538,0.33737331,110930.0,110920.0,0.005]
[1762088645794,0.3615636,110930.0,110920.0,0.005]
[1762088647354,0.5615636,110930.0,110920.0,0.005]
[1762088647568,0.59375541,110930.0,110920.0,0.005]
[1762088647770,0.62086127,110930.0,110920.0,0.005]
[1762088648210,0.61496044,110930.0,110920.0,0.001]
[1762088648462,0.62596044,110930.0,110920.0,0.005]
[1762088649419,0.62296044,110930.0,110920.0,0.004]
[1762088649765,0.6289486,110930.0,110920.0,0.004]
[1762088649901,0.62889421,110930.0,110920.0,0.004]
[1762088652372,0.5967024,110930.0,110920.0,0.004]
[1762088653504,0.62889421,110930.0,110920.0,0.004]
[1762088654104,0.60471598,110930.0,110920.0,1e-08]
[1762088654330,3.62081189,110930.0,110920.0,1e-08]
[1762088654540,3.62181189,110930.0,110920.0,1e-08]
[1762088654749,3.62179683,110930.0,110920.0,1e-08]
[1762088656960,3.62079683,110930.0,110920.0,1e-08]
[1762088657141,3.62179683,110930.0,110920.0,1e-08]
[1762088657388,3.62079683,110930.0,110920.0,1e-08]
[1762088658052,3.62179683,110930.0,110920.0,1e-08]
[1762088658464,3.66024612,110930.0,110920.0,1e-08]
[1762088658664,3.65024613,110930.0,110920.0,1e-08]
[1762088659639,3.6119584,110930.0,110920.0,1e-08]
[1762088660035,3.8119584,110930.0,110920.0,1e-08]
[1762088660235,3.87660635,110930.0,110920.0,1e-08]
[1762088660433,3.8119584,110930.0,110920.0,1e-08]
[1762088661728,3.82195839,110930.0,110920.0,1e-08]
[1762088662311,3.88962944,110930.0,110920.0,1e-08]
[1762088663154,3.95427739,110930.0,110920.0,1e-08]
[1762088663329,3.88962944,110930.0,110920.0,1e-08]
[1762088663781,3.8119584,110930.0,110920.0,1e-08]
[1762088663972,3.82195839,110930.0,110920.0,1e-08]
[1762088664189,3.88660634,110930.0,110920.0,1e-08]
[1762088665392,3.87660635,110930.0,110920.0,1e-08]
[1762088665607,3.88660634,110930.0,110920.0,1e-08]
[1762088666051,3.87660635,110930.0,110920.0,1e-08]
[1762088666267,0.18035891,110890.0,110880.0,0.01143]
[1762088666470,0.25329944,110890.0,110880.0,0.02784823]
[1762088666675,0.25254701,110890.0,110880.0,0.02784823]
[1762088666895,0.28491187,110890.0,110880.0,4.823e-05]
[1762088667102,0.30907677,110890.0,110880.0,4.823e-05]
[1762088667313,0.31107677,110890.0,110880.0,4.823e-05]
[1762088667536,0.31607677,110890.0,110880.0,0.01004823]
[1762088668841,0.31407677,110890.0,110880.0,0.01004823]